Cogmind - Beta 15 *** ADVENTURER MODE // 2025.05.22 @ 23:16:20 Player: Deep Beef Result: Destroyed by P-60 Hacker with Shock Rifle Performance ------------- Evolutions (4) 2000 Regions Visited (5) 1000 Robots Destroyed (30) 150 Value Destroyed (1350) 1350 Prototype IDs (1) 20 Alien Tech Used (0) 0 Bonus (1594) 1594 TOTAL SCORE: 6114 Bonus ------- High Alert Combat Kills 54 Follower Combat Kills 40 Entered Garrisons 200 Used RIF Installer 500 Registered with UFD 300 Met Optimus in HQ 500 Cogmind --------- Core Integrity 0/850 Matter 79/300 Energy 100/100 System Corruption 6% Temperature Cool (0) Movement Core (50) Location -6/Garrison Parts ------- > --- POWER (2) -------- (None) > --- PROPULSION (4) --- (None) > --- UTILITY (7) ------ Enhanced Optical Array Relay Coupler [Behemoth] (12) > --- WEAPON (2) ------- (None) > --- INVENTORY (5) ---- Light Particle Reactor Impulse Thruster Array Advanced Terrain Scan Processor Advanced ECM Suite Peak State ------------ > --- POWER ------------ Light Fission Core Light Fission Core > --- PROPULSION ------- Overtuned Huge Scrapsphere > --- UTILITY ---------- Scrap Suit Humpback Enhanced Optical Array Makeshift Hacking Suite Relay Coupler [Behemoth] > --- WEAPON ----------- Linear Accelerator Scatter Rocket Array > --- INVENTORY -------- Light Particle Reactor Light Particle Reactor Overtuned Flexi-carbon Leg Biometal Leg Combat Antigrav System Q-thruster Q-thruster Impulse Thruster Array Advanced Terrain Scan Processor Makeshift Salvage Targeting Computer Advanced Launcher Guidance Computer Advanced ECM Suite Advanced Powered Armor Advanced Remote Force Field Makeshift Hacking Suite Relay Coupler [Grunt] Advanced Component Analysis Suite Compact HERF Cannon Linear Accelerator SUBCON Basin [Rating: 92] Favorites ----------- Power Ion Engine Engine Ion Engine Power Core Light Fission Core Propulsion Overtuned Huge Scrapsphere Leg Aluminum Leg Wheel Overtuned Huge Scrapsphere Utility Humpback Device Scrap Suit Storage Humpback Processor Enhanced Optical Array Hackware Makeshift Hacking Suite Protection Light Armor Plating Weapon Shotgun Energy Gun Overtuned Pulse Rifle Energy Cannon Compact HERF Cannon Ballistic Gun Shotgun Ballistic Cannon Heavy Flak Cannon Launcher Scatter Rocket Array Special Weapon CPS Tube Build | -11 -10 -10 -9 -6 -6 ------- Run | Yrd Mat Sub Scr Fac Gar Slots Evolved 8 | . . . . 8 . Power 1 | . . . . 1 . Propulsion 2 | . . . . 2 . Utility 5 | . . . . 5 . Weapon . | . . . . . . Parts Attached 41 | 6 4 1 15 8 7 Power 9 | 1 . 1 3 1 3 Engine 7 | 1 . 1 3 1 1 Core 2 | . . . . . 2 Reactor . | . . . . . . Propulsion 9 | 2 . . 7 . . Treads . | . . . . . . Leg 6 | 2 . . 4 . . Wheel 3 | . . . 3 . . Hover . | . . . . . . Flight . | . . . . . . Utility 12 | 1 2 . 2 4 3 Device 2 | . . . . 1 1 Storage 3 | 1 1 . 1 . . Processor 2 | . . . . 1 1 Hackware 2 | . . . . 1 1 Protection 3 | . 1 . 1 1 . Artifact . | . . . . . . Weapon 11 | 2 2 . 3 3 1 Energy Gun 3 | . . . 2 1 . Energy Cannon . | . . . . . . Ballistic Gun 4 | 2 2 . . . . Ballistic Cannon 2 | . . . . 1 1 Launcher 1 | . . . . 1 . Special Weapon 1 | . . . 1 . . Impact Weapon . | . . . . . . Slashing Weapon . | . . . . . . Piercing Weapon . | . . . . . . Special Melee Weapon . | . . . . . . Unidentified Prototypes 1 | . . . . 1 . Parts Lost 19 | . . . 2 . 17 Power 6 | . . . 1 . 5 Propulsion 2 | . . . . . 2 Utility 6 | . . . . . 6 Weapon 5 | . . . 1 . 4 Highest Loss Streak 8 | . . . 1 . 8 To Critical Strikes . | . . . . . . Average Backups 6 | 1 4 . 3 10 10 Power 1 | 1 1 . . . 2 Propulsion . | . . . . 1 1 Utility 3 | . 1 . 2 6 6 Weapon . | . 2 . . 1 . Tool/Special . | . . . . . . Unused Backups 27 | . 1 5 1 . 20 Power 2 | . . . . . 2 Propulsion 6 | . . . 1 . 5 Utility 15 | . 1 2 . . 12 Weapon 4 | . . 3 . . 1 Tool/Special . | . . . . . . Average Slot Usage (%) 71 | . 89 100 89 69 45 Engine 8 | . 14 14 13 10 1 Leg 12 | . 28 28 19 . . Wheel 4 | . . . 4 12 6 Storage 10 | . 14 14 14 6 5 Processor 2 | . . . . 5 6 Hackware 5 | . . . . 5 12 Protection 5 | . 4 14 8 5 . Energy Gun 1 | . . . 2 6 . Ballistic Gun 12 | . 28 28 19 2 . Launcher 2 | . . . . . 5 Special Weapon 2 | . . . 5 . . Peak Build Rating 92 | 6 9 27 46 85 92 Average Rating 44 | 4 7 24 34 80 61 On Entrance 28 | . 6 9 27 46 84 Naked Turns . | . . . . . . Heaviest Build 238 | 12 34 34 213 234 238 Greatest Support 43 | 20 20 20 43 40 40 Greatest Overweight (x) 70 | 1 1 1 70 5 69 Average Overweight (x) 4 | . . 1 2 5 17 Largest Inventory Capacity 35 | 8 15 15 35 35 35 Average Capacity 26 | 7 13 15 23 35 34 Most Carried 35 | 5 6 15 35 30 35 Average Carried 20 | 1 4 13 19 26 25 Final Capacity 35 | 8 15 15 35 35 5 Final Carried 32 | 1 6 15 32 30 5 Class Distribution -------------------- 53% | Hauler-Mutant 39% | Mutant 7% | Hauler-Scrapper Dominant Class ---------------- Mutant | -10/Materials Mutant | -10/Subcaves Mutant | -9/Scraptown Hauler-Scrapper | -6/Factory Hauler-Mutant | -6/Garrison Resources | -11 -10 -10 -9 -6 -6 ----------- Run | Yrd Mat Sub Scr Fac Gar Matter Collected 998 | 177 173 88 328 129 103 Remotely . | . . . . . . Salvage Created 991 | . 161 82 309 230 209 Parts 58 | . 13 10 15 10 10 Haulers Intercepted . | . . . . . . Recyclers Shooed . | . . . . . . Parts Field Recycled . | . . . . . . Retrieved Matter . | . . . . . . Parts Self-Destructed 10 | . . 10 . . . Prevented . | . . . . . . Kills | -11 -10 -10 -9 -6 -6 ------- Run | Yrd Mat Sub Scr Fac Gar Combat Hostiles Destroyed 28 | . 5 4 5 6 8 Guns 19 | . 5 4 5 4 1 Cannons 6 | . . . . 2 4 AOE 3 | . . . . . 3 Classes Destroyed 11 | . 3 1 3 2 2 Watcher 2 | . 2 . . . . Swarmer 9 | . 3 3 . 1 2 Grunt 7 | . 2 . . 3 2 Brawler 1 | . . . . 1 . Duelist 1 | . . . . 1 . Sentry 2 | . . 1 . . 1 Hunter 2 | . . . . . 2 Behemoth 1 | . . . . . 1 Ranger 1 | . . . 1 . . Guru 1 | . . . 1 . . Scrapper 3 | . . . 3 . . Best Kill Streak 4 | . 4 3 2 3 3 Combat Bots Only 3 | . 3 3 2 3 3 Max Kills in Single Turn 2 | . 1 2 1 2 2 Gunslinging 1 | . . 1 . . . Exploded 2 | . . . . . 2 Melee . | . . . . . . Uniques/NPCs Destroyed . | . . . . . . Combat | -11 -10 -10 -9 -6 -6 -------- Run | Yrd Mat Sub Scr Fac Gar Hostile Shots Fired 359 | . 14 15 62 26 242 Missed 100 | . 4 5 14 7 70 Hits 259 | . 10 10 48 19 172 Melee 2 | . . . 2 . . Projectile 257 | . 10 10 46 19 172 Critical Strikes 5 | . . . 3 . 2 Part Disruptions 1 | . . . . . 1 Damage Taken 3603 | . 80 83 585 406 2449 Core 949 | . . 11 78 160 700 Absorbed by Shields . | . . . . . . Ignored by Resistances 978 | . 27 24 165 78 684 Regen/Repaired (Parts) 60 | . . . . 10 50 Core Remaining (%) 82 | 100 . . 64 . . Volleys Fired 79 | . 14 5 26 15 19 Largest 2 | . 2 2 2 2 2 Hottest 124 | . 46 46 103 124 124 Shots Fired 137 | . 28 10 39 30 30 Gun 104 | . 28 10 37 16 13 Cannon 28 | . . . . 14 14 Launcher 3 | . . . . . 3 Special 2 | . . . 2 . . Kinetic 103 | . 28 10 36 15 14 Thermal 29 | . . . 1 15 13 Explosive 3 | . . . . . 3 Electromagnetic . | . . . . . . Robot Hit Streak 29 | . 14 6 19 29 18 Robot Miss Streak 5 | . 2 4 2 3 5 Penetration Max . | . . . . . . Secondary Targets 1 | . . 1 . . . Max Gunslinging Chain 1 | . . 1 . . . Shots Hit Robots 90 | . 19 7 18 24 22 Core Hits 95 | . 11 5 11 30 38 Critical Kills . | . . . . . . Critical Parts Destroyed . | . . . . . . Critical Strikes 5 | . . . . 3 2 Burn 4 | . . . . 3 1 Blast 1 | . . . . . 1 Melee Attacks . | . . . . . . Impact . | . . . . . . Slashing . | . . . . . . Piercing . | . . . . . . Sneak Attacks . | . . . . . . Combat Hostiles . | . . . . . . Follow-up Attacks . | . . . . . . Damage Inflicted 2944 | . 230 94 305 772 1543 Guns 1108 | . 230 94 305 302 177 Cannons 835 | . . . . 412 423 Explosions 991 | . . . . 58 933 Melee . | . . . . . . Ramming 10 | . . . . . 10 Kinetic 1486 | . 230 94 305 434 423 Thermal 457 | . . . . 280 177 Explosive 991 | . . . . 58 933 Electromagnetic . | . . . . . . Impact . | . . . . . . Slashing . | . . . . . . Piercing . | . . . . . . Highest Corruption 6 | . . . 1 . 6 Average Corruption 1 | . . . 1 . 2 Corruption Purged . | . . . . . . Corruption Blocked . | . . . . . . Effects 6 | . . . 6 . . Message Errors 2 | . . . 2 . . Matter Fused 3 | . . . 3 . . Data Loss (major) 1 | . . . 1 . . Overload Shots . | . . . . . . Overflow Damage 3 | . . . . . 3 Projectiles . | . . . . . . Explosions 3 | . . . . . 3 Melee . | . . . . . . Knockbacks 15 | . . . . 12 3 Impact . | . . . . . . Kinetic 13 | . . . . 10 3 Secondary 2 | . . . . 2 . Self-Inflicted Damage 463 | . . . . 46 417 Shots 25 | . . . . 1 24 Rammed 5 | . . . . . 5 Targets Rammed 5 | . . . . . 5 Kicked . | . . . . . . Crushed . | . . . . . . Highest Temperature 787 | . 5 . 140 644 787 Average Temperature 242 | . 2 . 52 257 318 Received Heat Transfer 798 | . 39 9 411 126 213 Effects 31 | . . . . 13 18 Shutdowns 9 | . . . . 3 6 Energy Bleed 4 | . . . . 3 1 Short Circuit 1 | . . . . . 1 Damage (minor) 5 | . . . . 2 3 Damage (major) 10 | . . . . 4 6 Damage (core) 2 | . . . . 1 1 Siege Activations . | . . . . . . Martial Activations . | . . . . . . Shielding Activations . | . . . . . . Robots Disrupted . | . . . . . . Combat Hostiles . | . . . . . . Robots Corrupted . | . . . . . . Combat Hostiles . | . . . . . . Parts Fried . | . . . . . . Impact Corruptions . | . . . . . . Robots Melted . | . . . . . . Combat Hostiles . | . . . . . . Parts Melted 2 | . . . 1 1 . Heat Transferred 1344 | . . . . 950 394 Parts Sabotaged . | . . . . . . Parts Stolen . | . . . . . . Parts Stripped . | . . . . . . Power Chain Reactions . | . . . . . . Alert | -11 -10 -10 -9 -6 -6 ------- Run | Yrd Mat Sub Scr Fac Gar Maximum Alert Level 5 | . . . . . 5 Low Security (%) 38 | 100 100 . . 100 25 Level 1 15 | . . . . . 19 Level 2 7 | . . . . . 9 Level 3 10 | . . . . . 12 Level 4 12 | . . . . . 15 Level 5 14 | . . . . . 17 High Security . | . . . . . . Max Security . | . . . . . . Peak Influence 2193 | . 97 . . 120 2193 Initial 49 | . . . . . 49 Average 692 | . 20 . . 30 839 Influence Increases 2684 | . 138 90 . 182 2274 Destroy 0b10 Robot/C 480 | . 100 80 . 140 160 Destroy 0b10 Robot/NC 10 | . 10 . . . . Destroy Leader 54 | . 24 10 . 10 10 Allied During Kill 1 | . . . . 1 . Successful Hack 23 | . 4 . . 1 18 Disable Machine 9 | . . . . 9 . Anti-Garrison Action 2050 | . . . . . 2050 Destroy Structure 42 | . . . . 21 21 Lose Combat Pursuer 15 | . . . . . 15 Influence Decreases 531 | . 138 90 . 101 202 Entered New Map 32 | . . . . . 32 Time Decay 329 | . 138 90 . 101 . Lost Part 170 | . . . . . 170 Squads Dispatched 2 | . 1 . . 1 . Investigation 1 | . 1 . . . . Extermination 1 | . . . . 1 . Reinforcement . | . . . . . . Assault . | . . . . . . Garrison . | . . . . . . Intercept . | . . . . . . Searches Triggered . | . . . . . . Construction Impeded . | . . . . . . Haulers Reinforced . | . . . . . . Active Scanning Responses . | . . . . . . Cargo Convoy Interrupts . | . . . . . . Stealth | -11 -10 -10 -9 -6 -6 --------- Run | Yrd Mat Sub Scr Fac Gar Distress Signals . | . . . . . . Communications Jammed . | . . . . . . Distress Signals . | . . . . . . Times Spotted 66 | . 8 4 21 7 26 Peak Tracking Total 14 | . 4 3 3 3 14 Tactical Retreats 1 | . . . . . 1 Traps | -11 -10 -10 -9 -6 -6 ------- Run | Yrd Mat Sub Scr Fac Gar Traps Triggered 4 | . 1 . . . 3 Indirectly . | . . . . . . Trap Hack Attempts . | . . . . . . Triggered . | . . . . . . Disarmed . | . . . . . . Reprogrammed . | . . . . . . Reused . | . . . . . . Traps Extracted . | . . . . . . Installed . | . . . . . . Triggered . | . . . . . . Machines | -11 -10 -10 -9 -6 -6 ---------- Run | Yrd Mat Sub Scr Fac Gar Machines Disabled 3 | . . . 1 1 1 Max in Single Turn 1 | . . . 1 1 1 Garrison Relay 6 | . . . . . 6 Machines Repaired . | . . . . . . Machines Dismantled . | . . . . . . Machines Sabotaged . | . . . . . . Overloaded Fab Kills . | . . . . . . Hacking | -11 -10 -10 -9 -6 -6 --------- Run | Yrd Mat Sub Scr Fac Gar Machines Accessed 13 | . 2 3 5 2 1 Terminals 3 | . 2 . . . 1 Fabricators 1 | . . . . 1 . Repair Stations . | . . . . . . Recycling Units . | . . . . . . Scanalyzers . | . . . . . . Garrison Access 1 | . . . . 1 . Total Hacks 56 | . 4 7 39 2 4 Successful 52 | . 2 7 39 2 2 Failed 4 | . 2 . . . 2 Catastrophic . | . . . . . . Database Lockouts . | . . . . . . Manual 6 | . 3 . . . 3 Terminals 8 | . 4 . . . 4 Fabricators 1 | . . . . 1 . Repair Stations . | . . . . . . Recycling Units . | . . . . . . Scanalyzers . | . . . . . . Garrison Access 1 | . . . . 1 . Terminal Hacks 48 | . 1 7 39 . 1 Record 45 | . 1 5 39 . . Open Door 1 | . . 1 . . . Emergency Access Points 1 | . . . . . 1 Release Object 1 | . . 1 . . . Fabricator Hacks 1 | . . . . 1 . Network Status 1 | . . . . 1 . Repair Station Hacks . | . . . . . . Recycling Unit Hacks . | . . . . . . Scanalyzer . | . . . . . . Garrison Access Hacks 1 | . . . . 1 . Unlock Access 1 | . . . . 1 . Unauthorized Hacks 2 | . 1 . . . 1 Terminals 2 | . 1 . . . 1 Botnet 2 | . 1 . . . 1 Fabricators . | . . . . . . Repair Stations . | . . . . . . Recycling Units . | . . . . . . Scanalyzers . | . . . . . . Garrison Access . | . . . . . . Data Cores Recovered . | . . . . . . Used . | . . . . . . Hacking Detections 3 | . 2 . . . 1 Full Trace Events . | . . . . . . Feedback Events . | . . . . . . Feedback Blocked . | . . . . . . Robot Schematics Acquired . | . . . . . . Robots Built . | . . . . . . Authchips . | . . . . . . Time . | . . . . . . Total Robot Build Rating . | . . . . . . Part Schematics Acquired . | . . . . . . Parts Built . | . . . . . . Authchips . | . . . . . . Time . | . . . . . . Total Part Build Rating . | . . . . . . Parts Repaired . | . . . . . . Time . | . . . . . . Parts Recycled . | . . . . . . Recycled Matter . | . . . . . . Retrieved Matter . | . . . . . . Retrieved Components . | . . . . . . Parts Scanalyzed . | . . . . . . Part Schematics Acquired . | . . . . . . Parts Damaged . | . . . . . . Bothacking | -11 -10 -10 -9 -6 -6 ------------ Run | Yrd Mat Sub Scr Fac Gar Used RIF Installer 1 | . . . . . 1 Robots Hacked . | . . . . . . Non-combat . | . . . . . . Combat . | . . . . . . Robot Hacks Applied . | . . . . . . Relay Couplers Released 24 | . . . . . 24 Machine Destruction 24 | . . . . . 24 Attached 1 | . . . . . 1 Fabnet Peak Effective % . | . . . . . . Robots Rewired 1 | . . . . 1 . Allies Hacked . | . . . . . . Hacks Repelled . | . . . . . . Allies | -11 -10 -10 -9 -6 -6 -------- Run | Yrd Mat Sub Scr Fac Gar Total Allies 1 | . . . . 1 . Largest Group 1 | . . . . 1 . Highest-Rated Group 41 | . . . . 41 . Highest-Rated Ally 41 | . . . . 41 . Total Orders . | . . . . . . Ally Attacks 3 | . . . . 3 . Total Damage 127 | . . . . 127 . Kills 1 | . . . . 1 . Allies Corrupted . | . . . . . . Allies Melted 6 | . . . 6 . . Intel | -11 -10 -10 -9 -6 -6 ------- Run | Yrd Mat Sub Scr Fac Gar Active Infowar (turns) 4329 | . . . . . 4329 Optics 4329 | . . . . . 4329 Robot Analysis Total . | . . . . . . Derelict Logs Recovered 2 | . . 2 . . . Drone Launches . | . . . . . . Drone Recoveries . | . . . . . . Exploration | -11 -10 -10 -9 -6 -6 ------------- Run | Yrd Mat Sub Scr Fac Gar Turns Passed 11532 | 54 585 1363 4394 402 4734 Spaces Moved 4017 | 36 315 706 2061 261 638 Core 135 | 8 . . 16 . 111 Treads . | . . . . . . Legs 2792 | 28 315 706 1743 . . Wheels 1090 | . . . 302 261 527 Hover . | . . . . . . Flight . | . . . . . . Fastest Speed 50 | 50 120 190 120 120 80 Average Speed 275 | 114 166 190 206 120 720 Slowest Speed 3550 | 190 190 190 3550 120 3500 Overloaded Moves . | . . . . . . Propulsion Burnouts . | . . . . . . Robots Hopped . | . . . . . . Potential Cave-ins . | . . . . . . Cave-ins Triggered . | . . . . . . Exploration Rate (%) 37 | 4 44 38 91 7 38 Regions Visited 5 Branch Regions 2 Pre-discovered Areas 3 | . . 3 . . . Known Exits Taken 2 | . . . 1 1 . Unknown Exits Taken 3 | 1 1 1 . . . Scrap Searched 10 | . . . 10 . . Spaces Dug 25 | . . . . . 25 Terrain Destroyed 68 | . . . . 25 43 Melee . | . . . . . . Projectile 2 | . . . . . 2 AOE 66 | . . . . 25 41 Terrain Rammed . | . . . . . . Walls Destroyed . | . . . . . . Machines Disabled . | . . . . . . Actions | -11 -10 -10 -9 -6 -6 --------- Run | Yrd Mat Sub Scr Fac Gar Total 4358 | 48 351 721 2169 328 741 Wait 82 | 1 5 3 29 15 29 Move 4012 | 35 314 705 2060 260 638 Hop . | . . . . . . Pick Up 66 | 6 10 1 24 8 17 Fast Attach 2 | 1 . . 1 . . Attach 30 | 5 2 . 9 6 8 Detach 3 | . . . 3 . . Swap 15 | . 2 1 6 3 3 Drop 31 | . 4 6 11 5 5 Fire 79 | . 14 5 26 15 19 Melee . | . . . . . . Ram 5 | . . . . . 5 Kick . | . . . . . . Crush . | . . . . . . Escape Stasis 16 | . . . . . 16 Rewire 16 | . . . . 16 . Trap . | . . . . . . Miscellaneous 1 | . . . . . 1 Route ------- -11/Scrapyard -10/Materials -10/Subcaves -9/Scraptown (discovered 2 exits: *Fac x2) -6/Factory -6/Garrison History --------- Turn | Location | Event 22 | -11/Scrapyard | Discovered new exit (range 15) 55 | -11/Scrapyard | Entered Materials 306 | -10/Materials | Build established: Mutant 617 | -10/Materials | Discovered new exit (range 13) 640 | -10/Materials | Entered Subcaves 641 | -10/Subcaves | Approached by a straggling Scientist 658 | -10/Subcaves | Learned location of Zion (-7) 856 | -10/Subcaves | Found SUBCON Basin 1169 | -10/Subcaves | Scientist uncovered a shortcut to Scraptown 1284 | -10/Subcaves | Learned location of Storage (-9) 1378 | -10/Subcaves | Met a Zionite searching for "candidates" 1765 | -10/Subcaves | Visited Clippyterm 1770 | -10/Subcaves | Learned Factory emergency access door positions 2003 | -10/Subcaves | Entered Scraptown 2501 | -9/Scraptown | Heard Great Nut preacher, LISTEN AND RECITE! 2765 | -9/Scraptown | Visited Symbiants 2849 | -9/Scraptown | Visited The Evicted 2943 | -9/Scraptown | Visited Bundlers 3100 | -9/Scraptown | Visited Spacefarers 3791 | -9/Scraptown | Visited CPS Storage 3809 | -9/Scraptown | Visited Shadow of the Wyrm 3959 | -9/Scraptown | Discovered new exit (range 3) 4087 | -9/Scraptown | Visited SPCMW 4139 | -9/Scraptown | Visited UFD Registry 4139 | -9/Scraptown | Registered with UFD as "Alphacase" 4318 | -9/Scraptown | Visited Junk Repository 4398 | -9/Scraptown | Visited LU-1G1's Boring Crew 4854 | -9/Scraptown | Build established: Hauler-Mutant 5058 | -9/Scraptown | Visited Junk Repository 5163 | -9/Scraptown | Visited DA-N13 Charitable Foundation 5190 | -9/Scraptown | Found DCF Scrap (28 items) 5368 | -9/Scraptown | Met Optimus 5368 | -9/Scraptown | Accepted into 0bPrime 5452 | -9/Scraptown | Visited Abandonware Association 5478 | -9/Scraptown | Learned abandonware demo "OVRCLOCK.EXE" 5481 | -9/Scraptown | Civil war broke out across Scraptown 5555 | -9/Scraptown | Lost 9 allies 5592 | -9/Scraptown | Identified exit to Factory 5615 | -9/Scraptown | Found Scrap Suit 5630 | -9/Scraptown | Found Scrap Suit 5683 | -9/Scraptown | Visited Modified Component R&D 5726 | -9/Scraptown | Lost 4 allies 6267 | -9/Scraptown | Lost 3 allies 6397 | -9/Scraptown | Entered Factory 6397 | -6/Factory | Evolved 8 slots: Power x1, Propulsion x2, Utility x5 6584 | -6/Factory | Found Prototype Launcher 6585 | -6/Factory | Identified Scatter Rocket Array 6684 | -6/Factory | Build established: Hauler-Scrapper 6773 | -6/Factory | Identified exit to Garrison 6799 | -6/Factory | Entered Garrison 6931 | -6/Garrison | Triggered checkpoint 7054 | -6/Garrison | Installed Relay Interface Framework 7185 | -6/Garrison | Spotted B-75 Beast 7190 | -6/Garrison | Released subatomizers from SUBCON Basin 7213 | -6/Garrison | Core integrity fell below 50% 7214 | -6/Garrison | Destroyed B-75 Beast 7241 | -6/Garrison | Lost 7 parts (1p1n3u2w) 7491 | -6/Garrison | Build established: Hauler-Mutant 11092 | -6/Garrison | Found Adv. Powered Armor 11501 | -6/Garrison | Triggered checkpoint 11505 | -6/Garrison | Triggered checkpoint 11522 | -6/Garrison | Core integrity fell below 20% 11533 | -6/Garrison | Destroyed by P-60 Hacker with Shock Rifle Last Messages --------------- Lgt. Fission Core destroyed. S-27 Virus suffers critical hit (Blast). Destroyed VTOL Module. S-27 Virus destroyed. Lgt. Fission Core destroyed. Slammed into P-60 Hacker. Acquired 40 matter. Scrap Suit destroyed. Slammed into P-60 Hacker. Destabilizing: System corrupted (+1). Linear Accelerator destroyed. Mak. Hacking Suite destroyed. Subatomizers dissect the VTOL Module, destroying it. P-60 Hacker resets S-27 Virus, system corruption cleaned. Slammed into P-60 Hacker. Acquired 3 matter. Slammed into P-60 Hacker. Enh. Optical Array broken. Destabilizing: Short circuit. Map ----- +----------------------------------------------------+ | ?????????????????????????????????????????????????? | | ?????+?????????????????????#??????????????????#??? | | ??????????????? ????????????????????????????????? | | ??????????????? ????????????????????????????????? | | ??????????????# ??#?????????????????????????????? | | ????? ???????# ????????????????????????????????? | | ????# ???????# #????????????????????????????+??? | | ????# ???????# #???????????????????????????????? | | ????# ???????# ???????????????????????????????? | | ????# ?####### #???????????????????????????????? | | ????# ?# ## #???????????????????????????????? | | ???## ## ## ##?#????????????????????????????? | | #### # #????????????????????????????? | | ? # #????????????????????????????? | | ?? # #????????????????????????????? | | ???# ## ## # #????????????????????????????? | | ?### ## ## # #????????????????????????????? | | ?# #????????????????????????????? | | ?# #????????????????????????????? | | ?# #????????????????????????????? | | ?? ?????????????????????????????? | | ???# ## ## #?????######???????????????????? | | ???# ## ## #?????#! ????????????????????? | | ???# ! Y#######! #?????????????????????? | | ???#]*== ssssp## ### #??????????????????? | | ???#!!!!= ###=ss @ #??????????????????? | | ???##=&## ## ##?## ##p### #??????????????????? | | ????#!]## ## #???# ##! #?????????????????????? | | ????#!=######## #???# ##! ????????????????????? | | ????# #??????# #???# #######???????????????????? | | ????# #??????# #???# #?????????????????????????? | | ????# #??????# #???# #?????????????#???????????? | | ????# #??????# #???# #?????????????????????????? | | ##### #??????# #???# #?????????????????????????? | | #??????# ??? ?????????????????????????? | | #?????? ??? ?????#?????#?????????????? | | #####" #??????# #???# ?????????????????????????? | | ????# #??????# #???# ???????????#?????????????? | | ????# #??????# #???# ?????????????????????????? | | ????# #??????# #???? ?????????????????????????? | | ????# #??????# #???? ?????????????????????????? | | ????# #??????? ????? ?????????????????????????? | | ????# #??????? ????? ?????????????????????????? | | ????# #??????? ????? ?????????????????????????? | | ????# #??????? ????? ?????????????????????????? | | ????# #??????????????##?????????????????????????? | | ????# #?????????????????????????????????????????? | | ????# #?????????????????????????????????????????? | | ????# #?????????????????????????????????????????? | | ????# #?????????????????????????????????????????? | +----------------------------------------------------+ Best States ------------- Heat Dissipation 37 Energy Generation 31 Energy Capacity 330 Matter Stores 300 Matter Capacity 300 Sight Range 22 Terrain Scan Density 10 Armor Coverage 150 Resistance: KI 20 Resistance: TH 20 Resistance: EX 20 Resistance: EM 20 Resistance: I 20 Resistance: S 20 Resistance: P 20 Evasion (%) 55 Salvage Targeting 4 Offensive Hacking 21 Relay Coupler Types 1 Relay Coupler Value 12 Item Schematics ----------------- None Robot Schematics ------------------ None Fabricated ------------ Nothing Repaired ---------- Nothing Alien Tech Used ----------------- None Achievements -------------- None Challenges ------------ None Game ------ Seed CloakHoverReconfigurator Manual? 0 Play Time 01:35:19 Cumulative 183.6 hours Start 2025.05.22 @ 17:44:49 End 2025.05.22 @ 23:16:20 Sessions 1 Manual Loads 0 Difficulty Adventurer Special Mode None Game No. 137 Rogue 72 Adventurer 65 Explorer 0 Win Type - Total 1 Types 1/0/0/0/0/0/0/0/0/0 Lore% 36 Gallery% 55 Achievement% 47 Wizard Run 0 Options --------- Layout 1 ASCII 0 Keyboard 0 Movement Mouse Keybinds 0 Fullscreen 1 Font 16/SmallcapsGlow Map View 55x38 Zoom Use 0% Tactical HUD 0 Map Filters NONE Filters NONE Steam 1 RUN: 8dc1b224-f71c-463a-a127-f19e53015dba